Cogmind - Beta 14 @@@ ROGUE MODE // 2025.03.10 @ 21:57:38 Player: Leech Result: Destroyed by G-47 Trooper with Particle Gun Performance ------------- Evolutions (1) 500 Regions Visited (6) 1200 Robots Destroyed (33) 165 Value Destroyed (959) 959 Prototype IDs (25) 500 Alien Tech Used (0) 0 Bonus (278) 278 TOTAL SCORE: 3602 Bonus ------- Aligned with FarCom 300 Friendly Fire -22 Cogmind --------- Core Integrity 0/400 Matter 261/300 Energy 100/100 System Corruption 8% Temperature Cool (9) Movement Core (50) Location -8/Mines Parts ------- > --- POWER (1) -------- (None) > --- PROPULSION (4) --- (None) > --- UTILITY (2) ------ (None) > --- WEAPON (2) ------- Mining Claw > --- INVENTORY (5) ---- Armored Wheel Humpback Light Armor Plating Particle Cannon Peak State ------------ > --- POWER ------------ Improved Ion Engine > --- PROPULSION ------- Armored Wheel Armored Wheel Armored Wheel Armored Wheel > --- UTILITY ---------- Cargo Storage Unit > --- WEAPON ----------- Heavy Assault Rifle Autogun > --- INVENTORY -------- Ion Engine Light Nuclear Core Makeshift Power Source Armored Wheel VTOL Module Improved Heat Sink Large Storage Unit Experimental Sensor Array Targeting Computer Targeting Computer Light Armor Plating Light Armor Plating Shield Generator Beam Rifle Beam Rifle Particle Gun Particle Cannon Light Assault Rifle Rocket Launcher Datajack Datajack Mining Claw [Rating: 20] Favorites ----------- Power Light Nuclear Core Engine Improved Ion Engine Power Core Light Nuclear Core Propulsion Armored Wheel Leg Aluminum Leg Wheel Armored Wheel Utility Signal Interpreter Storage Small Storage Unit Processor Signal Interpreter Protection Light Armor Plating Weapon Small Laser Energy Gun Small Laser Energy Cannon Particle Cannon Ballistic Gun Light Assault Rifle Launcher Rocket Launcher Slashing Weapon Mining Claw Build | -11 -10 -10 -9 -9 -9 -8 ------- Run | Yrd Mat Min Mat Min Exi Min Slots Evolved 2 | . . . 2 . . . Power . | . . . . . . . Propulsion 2 | . . . 2 . . . Utility . | . . . . . . . Weapon . | . . . . . . . Parts Attached 45 | 6 7 5 15 6 1 5 Power 8 | 1 3 2 . 2 . . Engine 6 | 1 2 1 . 2 . . Core 2 | . 1 1 . . . . Reactor . | . . . . . . . Propulsion 14 | 2 2 1 8 . . 1 Treads . | . . . . . . . Leg 7 | 2 2 1 2 . . . Wheel 7 | . . . 6 . . 1 Hover . | . . . . . . . Flight . | . . . . . . . Utility 6 | 1 1 . 2 1 1 . Device . | . . . . . . . Storage 4 | 1 . . 1 1 1 . Processor 1 | . 1 . . . . . Hackware . | . . . . . . . Protection 1 | . . . 1 . . . Artifact . | . . . . . . . Weapon 17 | 2 1 2 5 3 . 4 Energy Gun 4 | 1 1 2 . . . . Energy Cannon 2 | . . . 2 . . . Ballistic Gun 6 | 1 . . 2 2 . 1 Ballistic Cannon . | . . . . . . . Launcher 3 | . . . . 1 . 2 Special Weapon . | . . . . . . . Impact Weapon . | . . . . . . . Slashing Weapon 2 | . . . 1 . . 1 Piercing Weapon . | . . . . . . . Special Melee Weapon . | . . . . . . . Unidentified Prototypes . | . . . . . . . Parts Lost 14 | . 2 4 3 . . 5 Power 3 | . 1 1 . . . 1 Propulsion 5 | . . 1 2 . . 2 Utility 2 | . . . 1 . . 1 Weapon 4 | . 1 2 . . . 1 Highest Loss Streak 5 | . 2 2 3 . . 5 To Critical Strikes . | . . . . . . . Average Slot Usage (%) 91 | . 91 98 98 95 77 83 Engine 6 | . 12 1 . 11 11 10 Core 4 | . 1 11 11 . . . Leg 11 | . 28 27 5 . . . Wheel 25 | . . . 37 44 44 41 Storage 12 | . 14 14 11 11 11 10 Processor 6 | . 6 14 10 . . . Energy Gun 8 | . 13 24 6 . . . Ballistic Gun 12 | . 14 3 9 22 11 19 Peak Build Rating 20 | 6 9 9 18 20 20 20 Average Rating 13 | 5 6 8 16 16 18 18 On Entrance 11 | . 6 9 9 18 20 18 Naked Turns . | . . . . . . . Heaviest Build 214 | 11 12 12 32 153 210 214 Greatest Support 48 | 20 20 20 48 48 48 48 Greatest Overweight (x) 67 | . . 1 . 3 4 67 Average Overweight (x) 1 | . . . . . 3 4 Largest Inventory Capacity 35 | 8 8 8 15 30 35 35 Average Capacity 18 | 7 8 8 14 19 31 34 Most Carried 27 | 4 8 8 15 22 27 22 Average Carried 13 | 2 5 7 12 14 22 21 Final Capacity 35 | 8 8 8 15 30 35 5 Final Carried 23 | 4 8 8 13 22 23 5 Class Distribution -------------------- 46% | Mutant 34% | Hauler-Mutant 19% | Scavenger-Mutant Dominant Class ---------------- Mutant | -10/Materials Scavenger-Mutant | -10/Mines Mutant | -9/Materials Mutant | -9/Mines Hauler-Mutant | -9/Exiles Hauler-Mutant | -8/Mines Resources | -11 -10 -10 -9 -9 -9 -8 ----------- Run | Yrd Mat Min Mat Min Exi Min Matter Collected 962 | 224 104 83 237 150 46 118 Remotely . | . . . . . . . Salvage Created 1131 | . 287 170 459 97 . 118 Parts 53 | . 16 5 27 3 . 2 Haulers Intercepted . | . . . . . . . Recyclers Shooed 4 | . 2 . 1 1 . . Parts Field Recycled . | . . . . . . . Retrieved Matter . | . . . . . . . Parts Self-Destructed . | . . . . . . . Prevented . | . . . . . . . Kills | -11 -10 -10 -9 -9 -9 -8 ------- Run | Yrd Mat Min Mat Min Exi Min Combat Hostiles Destroyed 30 | . 8 4 12 3 . 3 Melee 1 | . . . 1 . . . Guns 20 | . 8 4 7 . . 1 Cannons 4 | . . . 4 . . . AOE 5 | . . . . 3 . 2 Classes Destroyed 6 | . 3 . 3 . . . Recycler 2 | . 1 . . 1 . . Watcher 1 | . . . 1 . . . Swarmer 10 | . 3 . 4 3 . . Grunt 17 | . 5 4 5 . . 3 Brawler 1 | . . . 1 . . . Sentry 2 | . . . 2 . . . Best Kill Streak 4 | . 4 2 4 4 . 3 Combat Bots Only 4 | . 4 2 4 3 . 3 Max Kills in Single Turn 3 | . 1 1 2 3 . 2 Gunslinging 1 | . . . 1 . . . Exploded 3 | . . . . 3 . 2 Melee 1 | . . . 1 . . . Uniques/NPCs Destroyed . | . . . . . . . Combat | -11 -10 -10 -9 -9 -9 -8 -------- Run | Yrd Mat Min Mat Min Exi Min Hostile Shots Fired 220 | . 51 34 58 5 . 72 Missed 47 | . 14 4 13 1 . 15 Damage Taken 2643 | . 425 409 538 35 . 1236 Core 555 | . 71 75 46 . . 363 Absorbed by Shields . | . . . . . . . Core Remaining (%) 70 | 100 . 41 . . . . Volleys Fired 122 | . 38 22 52 3 . 7 Largest 2 | . 2 2 2 2 . 2 Hottest 88 | . 70 60 88 56 . 56 Shots Fired 232 | . 70 37 104 7 1 13 Gun 206 | . 70 37 82 6 1 10 Cannon 22 | . . . 22 . . . Launcher 4 | . . . . 1 . 3 Special . | . . . . . . . Kinetic 140 | . 38 17 68 6 1 10 Thermal 88 | . 32 20 36 . . . Explosive 4 | . . . . 1 . 3 Electromagnetic . | . . . . . . . Robot Hit Streak 16 | . 9 11 16 5 1 4 Robot Miss Streak 6 | . 4 3 3 1 . 6 Penetration Max . | . . . . . . . Secondary Targets 2 | . . 1 1 . . . Max Gunslinging Chain 1 | . . 1 1 . . . Shots Hit Robots 162 | . 46 25 76 3 1 11 Core Hits 63 | . 18 11 22 4 . 8 Critical Kills 1 | . . . 1 . . . Critical Parts Destroyed 2 | . 1 1 . . . . Critical Strikes 4 | . 2 1 1 . . . Burn 1 | . 1 . . . . . Destroy 3 | . 1 1 1 . . . Melee Attacks 11 | . . . 1 . . 10 Impact . | . . . . . . . Slashing 11 | . . . 1 . . 10 Piercing . | . . . . . . . Sneak Attacks 1 | . . . . . . 1 Combat Hostiles . | . . . . . . . Follow-up Attacks . | . . . . . . . Damage Inflicted 2486 | . 455 245 1002 245 22 517 Guns 1444 | . 455 241 608 34 22 84 Cannons 369 | . . . 369 . . . Explosions 482 | . . . . 211 . 271 Melee 187 | . . . 25 . . 162 Ramming 4 | . . 4 . . . . Kinetic 951 | . 218 85 508 34 22 84 Thermal 862 | . 237 156 469 . . . Explosive 482 | . . . . 211 . 271 Electromagnetic . | . . . . . . . Impact . | . . . . . . . Slashing 187 | . . . 25 . . 162 Piercing . | . . . . . . . Highest Corruption 8 | . . . 8 8 8 8 Average Corruption 7 | . . . 7 8 8 8 Corruption Purged . | . . . . . . . Corruption Blocked . | . . . . . . . Effects 42 | . . . 1 14 17 10 Message Errors 10 | . . . 1 3 5 1 Matter Fused 10 | . . . . 5 3 2 Heat Flow Errors 6 | . . . . 2 1 3 Energy Discharges 7 | . . . . . 7 . Parts Rejected 1 | . . . . . . 1 Parts Fused 1 | . . . . 1 . . Data Loss (minor) 1 | . . . . 1 . . Data Loss (major) 4 | . . . . 1 . 3 Misfires 2 | . . . . 1 1 . Overload Shots . | . . . . . . . Overflow Damage 59 | . . . 2 39 . 18 Projectiles 2 | . . . 2 . . . Explosions 39 | . . . . 39 . . Melee 18 | . . . . . . 18 Knockbacks 1 | . . 1 . . . . Impact 1 | . . 1 . . . . Kinetic . | . . . . . . . Secondary . | . . . . . . . Self-Inflicted Damage 8 | . . . . . . 8 Shots 1 | . . . . . . 1 Rammed . | . . . . . . . Targets Rammed 1 | . . 1 . . . . Kicked 1 | . . 1 . . . . Crushed . | . . . . . . . Highest Temperature 396 | . 124 161 396 113 113 244 Average Temperature 76 | . 45 74 106 59 49 69 Received Heat Transfer 984 | . 192 243 180 . . 369 Effects 1 | . . . 1 . . . Shutdowns 1 | . . . 1 . . . Siege Activations . | . . . . . . . Robots Corrupted . | . . . . . . . Combat Hostiles . | . . . . . . . Parts Fried . | . . . . . . . Impact Corruptions . | . . . . . . . Robots Melted . | . . . . . . . Combat Hostiles . | . . . . . . . Parts Melted 3 | . 2 . 1 . . . Heat Transferred 1900 | . 659 350 891 . . . Parts Sabotaged . | . . . . . . . Parts Stolen . | . . . . . . . Parts Stripped . | . . . . . . . Power Chain Reactions . | . . . . . . . Alert | -11 -10 -10 -9 -9 -9 -8 ------- Run | Yrd Mat Min Mat Min Exi Min Peak Influence 257 | . 216 73 257 140 . 79 Initial 59 | . . 13 . 59 . . Average 78 | . 97 34 119 109 . 66 Maximum Alert Level 1 | . 1 . 1 . . . Low Security (%) 96 | 100 93 100 89 100 . 100 Level 1 3 | . 6 . 10 . . . Level 2 . | . . . . . . . Level 3 . | . . . . . . . Level 4 . | . . . . . . . Level 5 . | . . . . . . . High Security . | . . . . . . . Max Security . | . . . . . . . Squads Dispatched 2 | . 1 . 1 . . . Investigation 1 | . 1 . . . . . Extermination . | . . . . . . . Reinforcement 1 | . . . 1 . . . Assault . | . . . . . . . Garrison . | . . . . . . . Intercept . | . . . . . . . Searches Triggered . | . . . . . . . Construction Impeded . | . . . . . . . Haulers Reinforced . | . . . . . . . Active Scanning Responses . | . . . . . . . Cargo Convoy Interrupts . | . . . . . . . Stealth | -11 -10 -10 -9 -9 -9 -8 --------- Run | Yrd Mat Min Mat Min Exi Min Distress Signals 1 | . 1 . . . . . Communications Jammed . | . . . . . . . Distress Signals . | . . . . . . . Times Spotted 46 | . 12 4 20 4 . 6 Peak Tracking Total 6 | . 6 2 5 3 . 3 Tactical Retreats 1 | . . . 1 . . . Traps | -11 -10 -10 -9 -9 -9 -8 ------- Run | Yrd Mat Min Mat Min Exi Min Traps Triggered 1 | . 1 . . . . . Indirectly . | . . . . . . . Trap Hack Attempts . | . . . . . . . Triggered . | . . . . . . . Disarmed . | . . . . . . . Reprogrammed . | . . . . . . . Reused . | . . . . . . . Traps Extracted . | . . . . . . . Installed . | . . . . . . . Triggered . | . . . . . . . Machines | -11 -10 -10 -9 -9 -9 -8 ---------- Run | Yrd Mat Min Mat Min Exi Min Machines Disabled 2 | . . . . . . 2 Max in Single Turn 2 | . . . . . . 2 Machines Repaired . | . . . . . . . Machines Dismantled . | . . . . . . . Machines Sabotaged . | . . . . . . . Overloaded Fab Kills . | . . . . . . . Hacking | -11 -10 -10 -9 -9 -9 -8 --------- Run | Yrd Mat Min Mat Min Exi Min Machines Accessed 3 | . 2 . . . 1 . Terminals 2 | . 2 . . . . . Fabricators . | . . . . . . . Repair Stations . | . . . . . . . Recycling Units . | . . . . . . . Scanalyzers . | . . . . . . . Garrison Access . | . . . . . . . Total Hacks 3 | . 2 . . . 1 . Successful 3 | . 2 . . . 1 . Failed . | . . . . . . . Catastrophic . | . . . . . . . Database Lockouts . | . . . . . . . Manual 1 | . . . . . 1 . Terminals 2 | . 2 . . . . . Fabricators . | . . . . . . . Repair Stations . | . . . . . . . Recycling Units . | . . . . . . . Scanalyzers . | . . . . . . . Garrison Access . | . . . . . . . Terminal Hacks 3 | . 2 . . . 1 . Prototype ID Bank 1 | . 1 . . . . . Registered Components 1 | . 1 . . . . . Derelict Proto ID Bank 1 | . . . . . 1 . Fabricator Hacks . | . . . . . . . Repair Station Hacks . | . . . . . . . Recycling Unit Hacks . | . . . . . . . Scanalyzer . | . . . . . . . Garrison Access Hacks . | . . . . . . . Unauthorized Hacks . | . . . . . . . Terminals . | . . . . . . . Fabricators . | . . . . . . . Repair Stations . | . . . . . . . Recycling Units . | . . . . . . . Scanalyzers . | . . . . . . . Garrison Access . | . . . . . . . Data Cores Recovered . | . . . . . . . Used . | . . . . . . . Hacking Detections 1 | . 1 . . . . . Full Trace Events . | . . . . . . . Feedback Events . | . . . . . . . Feedback Blocked . | . . . . . . . Robot Schematics Acquired . | . . . . . . . Robots Built . | . . . . . . . Authchips . | . . . . . . . Time . | . . . . . . . Total Robot Build Rating . | . . . . . . . Part Schematics Acquired . | . . . . . . . Parts Built . | . . . . . . . Authchips . | . . . . . . . Time . | . . . . . . . Total Part Build Rating . | . . . . . . . Parts Repaired . | . . . . . . . Time . | . . . . . . . Parts Recycled . | . . . . . . . Recycled Matter . | . . . . . . . Retrieved Matter . | . . . . . . . Retrieved Components . | . . . . . . . Parts Scanalyzed . | . . . . . . . Part Schematics Acquired . | . . . . . . . Parts Damaged . | . . . . . . . Bothacking | -11 -10 -10 -9 -9 -9 -8 ------------ Run | Yrd Mat Min Mat Min Exi Min Used RIF Installer . | . . . . . . . Robots Hacked . | . . . . . . . Non-combat . | . . . . . . . Combat . | . . . . . . . Robot Hacks Applied . | . . . . . . . Relay Couplers Released . | . . . . . . . Fabnet Peak Effective % . | . . . . . . . Robots Rewired . | . . . . . . . Allies Hacked . | . . . . . . . Hacks Repelled . | . . . . . . . Allies | -11 -10 -10 -9 -9 -9 -8 -------- Run | Yrd Mat Min Mat Min Exi Min Total Allies 2 | . . . . 2 . . Largest Group 2 | . . . . 2 1 . Highest-Rated Group 41 | . . . . 41 31 . Highest-Rated Ally 31 | . . . . 31 31 . Total Orders . | . . . . . . . Ally Attacks . | . . . . . . . Total Damage . | . . . . . . . Kills . | . . . . . . . Allies Corrupted . | . . . . . . . Allies Melted . | . . . . . . . Intel | -11 -10 -10 -9 -9 -9 -8 ------- Run | Yrd Mat Min Mat Min Exi Min Robot Analysis Total . | . . . . . . . Derelict Logs Recovered 3 | . . 2 . 1 . . Drone Launches . | . . . . . . . Drone Recoveries . | . . . . . . . Exploration | -11 -10 -10 -9 -9 -9 -8 ------------- Run | Yrd Mat Min Mat Min Exi Min Turns Passed 2958 | 76 434 658 535 318 452 485 Spaces Moved 1982 | 55 246 482 340 277 312 270 Core 4 | 3 . . . . . 1 Treads . | . . . . . . . Legs 821 | 52 246 482 41 . . . Wheels 1157 | . . . 299 277 312 269 Hover . | . . . . . . . Flight . | . . . . . . . Fastest Speed 50 | 50 120 120 90 90 90 150 Average Speed 121 | 116 120 121 93 99 137 162 Slowest Speed 3400 | 120 120 190 120 135 150 3400 Overloaded Moves . | . . . . . . . Propulsion Burnouts . | . . . . . . . Robots Hopped . | . . . . . . . Cave-ins Triggered . | . . . . . . . Exploration Rate (%) 49 | 4 39 91 31 59 61 61 Regions Visited 6 Branch Regions 4 Pre-discovered Areas 1 | . . . . 1 . . Known Exits Taken 2 | . 1 1 . . . . Unknown Exits Taken 4 | 1 . . 1 1 1 . Scrap Searched 2 | . . 1 . 1 . . Spaces Dug . | . . . . . . . Terrain Destroyed 31 | . . . . 7 . 24 Melee . | . . . . . . . Projectile . | . . . . . . . AOE 31 | . . . . 7 . 24 Terrain Rammed . | . . . . . . . Walls Destroyed . | . . . . . . . Machines Disabled . | . . . . . . . Actions | -11 -10 -10 -9 -9 -9 -8 --------- Run | Yrd Mat Min Mat Min Exi Min Total 2317 | 64 321 520 464 314 335 299 Wait 68 | . 21 9 28 4 . 6 Move 1976 | 54 245 481 339 276 311 270 Hop . | . . . . . . . Pick Up 74 | 4 7 1 19 21 21 1 Fast Attach 11 | 6 1 3 . . 1 . Attach 12 | . 2 1 5 1 . 3 Detach 2 | . . . . 1 1 . Swap 22 | . 4 1 10 5 . 2 Drop 18 | . 3 1 10 3 1 . Fire 122 | . 38 22 52 3 . 7 Melee 11 | . . . 1 . . 10 Ram . | . . . . . . . Kick 1 | . . 1 . . . . Crush . | . . . . . . . Escape Stasis . | . . . . . . . Rewire . | . . . . . . . Trap . | . . . . . . . Miscellaneous . | . . . . . . . Route ------- -11/Scrapyard -10/Materials (discovered 2 exits: *Mat / *Min) -10/Mines (discovered 2 exits: *Mat x2) -9/Materials (discovered 2 exits: Mat / [*Min]) -9/Mines (discovered 2 exits: *Mat / *Exi) -9/Exiles -8/Mines (discovered 1 exit: *Mat) History --------- Turn | Location | Event 27 | -11/Scrapyard | Discovered new exit (range 15) 77 | -11/Scrapyard | Entered Materials 245 | -10/Materials | Discovered new exit (range 5) 307 | -10/Materials | Build established: Mutant 375 | -10/Materials | Discovered new exit (range 11) 387 | -10/Materials | Identified exit to Mines 511 | -10/Materials | Entered Mines 655 | -10/Mines | Core integrity fell below 50% 664 | -10/Mines | Discovered new exit (range 8) 695 | -10/Mines | Identified exit to Materials 815 | -10/Mines | Learned Materials emergency access door positions 960 | -10/Mines | Discovered exit to Materials (range 14) 975 | -10/Mines | Build established: Scavenger-Mutant 1036 | -10/Mines | Learned location of 1 exit from Materials 1169 | -10/Mines | Entered Materials 1169 | -9/Materials | Evolved 2 slots: Propulsion x2 1170 | -9/Materials | Identified exit to Materials 1546 | -9/Materials | Build established: Mutant 1694 | -9/Materials | Discovered new exit (range 7) 1698 | -9/Materials | Lost 3 parts (2n1u) 1704 | -9/Materials | Entered Mines 1740 | -9/Mines | Discovered exit to Materials (range 8) 1837 | -9/Mines | Learned location of Storage (-8) 1858 | -9/Mines | Found a damaged Exp. Sensor Array with a note attached 1859 | -9/Mines | Found Prototype Device 1898 | -9/Mines | Joined a pair of Derelicts in attacking an 0b10 outpost 2016 | -9/Mines | Deemed a non-threat by the Exiles lab entrance 2017 | -9/Mines | Discovered new exit (range 5) 2022 | -9/Mines | Entered Exiles 2022 | -9/Exiles | Accompanied by 1 ally 2052 | -9/Exiles | Led the pair of lost Derelicts to a safe place 2055 | -9/Exiles | Met 8R-AWN 2081 | -9/Exiles | Met EX-HEX 2120 | -9/Exiles | Met EX-BIN 2136 | -9/Exiles | Aligned with FarCom system 2138 | -9/Exiles | Given EX-Vault access code 2178 | -9/Exiles | Opened EX-Vault 2196 | -9/Exiles | Found Modified TNC 2222 | -9/Exiles | Build established: Hauler-Mutant 2224 | -9/Exiles | Warned to stay clear of 0b10 Research branches 2268 | -9/Exiles | Met EX-DEC 2455 | -9/Exiles | Discovered new exit (range 14) 2474 | -9/Exiles | Left Exiles lab with Modified TNC 2474 | -9/Exiles | Entered Mines 2672 | -8/Mines | Discovered exit to Materials (range 15) 2944 | -8/Mines | Core integrity fell below 50% 2954 | -8/Mines | Core integrity fell below 20% 2959 | -8/Mines | Destroyed by G-47 Trooper with Particle Gun Last Messages --------------- U-05 Engineer lays Concrete. U-05 Engineer builds a Wall. Rocket Launcher severed. R-06 Scavenger collects Rocket Launcher. U-05 Engineer builds a Wall. Imp. Ion Engine destroyed. System corrupted: Substantial component data lost. U-05 Engineer builds a Wall. U-05 Engineer lays Concrete. Arm. Wheel severed. U-05 Engineer lays Concrete. K-01 Serf collects debris. Sneak attack on R-06 Scavenger. Destroyed Com. Wheel. K-01 Serf collects debris. Arm. Wheel destroyed. Humpback destroyed. K-01 Serf collects debris. L-31 Rogue destroyed. Map ----- +----------------------------------------------------+ | | | | | | | | | | | | | | | ?????????????????????????????????????????????????? | | ?????????????????????????????????????????????????? | | ????????????????????????????########?????????????? | | ???????????????????????????? #?????????????? | | ?????####???????####???????? ##????????????? | | ????## ?????## #?????#? ##???????????? | | ???## #???## #?????? #???????????? | | ??## #### ###???? "" ????????????? | | ?## ## ## ?????"" #????????????? | | ?# ## ##??? #????????????? | | ?# ## ???? ?????????????? | | ?## ## ## k#???? ??????????????? | | ??## # #### ##?# ##???? #####???????????? | | ???# ?### #?## #### ##??? ????????????? | | ????????# ### ## [##### $ #???????????????? | | ????????# *[g #????????????????? | | ????????# ## /=! #????????????????? | | ????????# ## #######[#######????????????????? | | ????????# ### ###?????#@#??????????????????????? | | ????????# #?####???????#!#??????????????????????? | | ?????#### #????????????#!#??????????????????????? | | ?????# #????????????#!#??????????g???????????? | | ?????# #????????????#!#??????????????????????? | | ?????# ####????????????# #??????????????????????? | | ?????# #???????????????# #??????????????????????? | | ?????# #???????????????# #??????????????????????? | | ?????# #???????????????# #??????????????????????? | | ??#### #???????????????? ???????????????????????? | | ?## #????????????????#???????????????????????? | | ?# ##???????????????????????????????????????? | | ?# ##??????????????????????????????????????? | | ?## #??????????????????????????????????????? | | ??## #??????????????????????g???????????????? | | ???# #????????????####??????g???????????????? | | ???# #???????????# ###????g???????????????? | | ???## ##?????????? ##???????????????????? | | ????## ##????????? #???????????????????? | | ?????## ##???????? #???????????????????? | | ??????## #####???# #????????????????????? | | ###????## #### #??????????????????????? | | ##????# #???????????????????????? | | #????# #???????????????????????? | | ##???# ## ##??????????????????????? | +----------------------------------------------------+ Best States ------------- Heat Dissipation 28 Energy Generation 14 Energy Capacity 265 Matter Stores 300 Matter Capacity 300 Sight Range 16 Terrain Scan Density 10 Armor Coverage 150 Evasion (%) 55 Item Schematics ----------------- None Robot Schematics ------------------ None Fabricated ------------ Nothing Alien Tech Used ----------------- None Achievements -------------- Tank Challenges ------------ None Game ------ Seed InertialMicrodissipatorScrap Manual? 0 Play Time 00:31:38 Cumulative 10.4 hours Start 2025.03.10 @ 21:20:15 End 2025.03.10 @ 21:57:38 Sessions 1 Manual Loads 0 Difficulty Rogue Special Mode None Game No. 14 Rogue 14 Adventurer 0 Explorer 0 Win Type - Total 0 Types 0/0/0/0/0/0/0/0/0 Lore% 7 Gallery% 13 Achievement% 14 Wizard Run 0 Options --------- Layout 1 ASCII 0 Keyboard 1 Movement Numpad Keybinds 0 Fullscreen 1 Font 24/Smallcaps Map View 50x35 Zoom Use 0% Tactical HUD 0 Map Filters NONE Filters NONE Steam 1 RUN: 8a36cd8b-f73c-48ee-b3c2-f3da8368f7ec